fUSD/lending_fUSD_20260421
["ID","MTS","AMOUNT","RATE_DAILY","PERIOD"]
[420903278,1776703560723,-12058.47,0.00043479,120]
[420903279,1776703560796,-4288.61,0.00043479,120]
[420903280,1776703560868,-6650.09,0.00043479,120]
[420903281,1776703560940,-606.56,0.00043479,120]
[420903282,1776703561012,-3061.21,0.00043479,120]
[420903283,1776703561085,-12058.47,0.00043479,120]
[420903284,1776703561156,-4288.61,0.00043479,120]
[420903285,1776703561229,-6650.09,0.00043479,120]
[420903286,1776703561305,-3061.21,0.00043479,120]
[420903287,1776703561376,-12058.47,0.00043479,120]
[420903288,1776703561449,-4288.61,0.00043479,120]
[420903289,1776703561525,-3061.21,0.00043479,120]
[420903290,1776703561599,-6650.18891376,0.00043479,120]
[420903291,1776703561672,-12058.47,0.00043479,120]
[420903292,1776703561746,-606.56,0.00043479,120]
[420903293,1776703562141,-4288.61,0.00043479,120]
[420903294,1776703562215,-3061.21,0.00043479,120]
[420903295,1776703562289,-12058.47,0.00043479,120]
[420903296,1776703562362,-4288.61,0.00043479,120]
[420903297,1776703562435,-606.56,0.00043479,120]
[420903298,1776703562509,-3061.21,0.00043479,120]
[420903299,1776703562583,-4288.61,0.00043479,120]
[420903300,1776703562658,-606.56,0.00043479,120]
[420903301,1776703562735,-12058.47,0.00043479,120]
[420903302,1776703562808,-3061.21,0.00043479,120]
[420903303,1776703562879,-606.56,0.00043479,120]
[420903304,1776703562951,-4288.61,0.00043479,120]
[420903305,1776703563021,-12058.47,0.00043479,120]
[420903306,1776703563092,-3061.21,0.00043479,120]
[420903307,1776703563162,-606.56,0.00043479,120]
[420903308,1776703563231,-4288.61,0.00043479,120]
[420903309,1776703563301,-12058.47,0.00043479,120]
[420903310,1776703563372,-3061.21,0.00043479,120]
[420903311,1776703563444,-606.56,0.00043479,120]
[420903312,1776703563522,-4288.61,0.00043479,120]
[420903313,1776703563595,-3061.21,0.00043479,120]
[420903314,1776703563670,-12058.56762182,0.00043479,120]
[420903315,1776703563744,-606.56,0.00043479,120]
[420903316,1776703563815,-4288.61,0.00043479,120]
[420903317,1776703563890,-3061.21,0.00043479,120]
[420903318,1776703563965,-4288.61,0.00043479,120]
[420903319,1776703564040,-606.56,0.00043479,120]
[420903320,1776703564110,-3061.21,0.00043479,120]
[420903321,1776703564179,-606.56,0.00043479,120]
[420903322,1776703564250,-4288.61,0.00043479,120]
[420903323,1776703564321,-3061.2413877,0.00043479,120]
[420903324,1776703564393,-606.56,0.00043479,120]
[420903325,1776703564465,-4288.75710078,0.00043479,120]
[420903326,1776703564539,-606.56,0.00043479,120]
[420903327,1776703564615,-606.56,0.00043479,120]
[420903328,1776703564692,-606.56,0.00043479,120]
[420903329,1776703564766,-606.56,0.00043479,120]
[420903330,1776703564838,-606.56,0.00043479,120]
[420903331,1776703564910,-606.56,0.00043479,120]
[420903332,1776703564983,-606.56,0.00043479,120]
[420903333,1776703565056,-606.63894623,0.00043479,120]
[420903334,1776703565130,-151.0,0.00043479,120]
[420903335,1776703565201,-190.798888,0.00043479,120]
[420903336,1776703565273,-190.798888,0.00043479,120]
[420903337,1776703565345,-190.798888,0.00043479,120]
[420903338,1776703565414,-190.798883,0.00043479,120]
[420903339,1776703565482,-322.179738,0.00043479,120]
[420903340,1776703565552,-322.179738,0.00043479,120]
[420903341,1776703565622,-322.179738,0.00043479,120]
[420903342,1776703565692,-322.179734,0.00043479,120]
[420903343,1776703565763,-343.397992,0.00043479,120]
[420903344,1776703565835,-343.397992,0.00043479,120]
[420903345,1776703565905,-343.397992,0.00043479,120]
[420903346,1776703565977,-343.397983,0.00043479,120]
[420903347,1776703566047,-151.0,0.00043479,120]
[420903348,1776703566116,-151.0,0.00043479,120]
[420903349,1776703566188,-151.0,0.00043479,120]
[420903350,1776703566259,-151.0,0.00043479,120]
[420903351,1776703566330,-256.074528,0.00043479,120]
[420903352,1776703566403,-151.0,0.00043479,120]
[420903353,1776703566473,-256.074528,0.00043479,120]
[420903354,1776703566545,-238.239931,0.00043479,120]
[420903355,1776703566621,-256.074528,0.00043479,120]
[420903356,1776703566697,-256.074529,0.00043479,120]
[420903357,1776703566772,-238.239931,0.00043479,120]
[420903358,1776703566843,-238.239931,0.00043479,120]
[420903359,1776703566915,-238.239933,0.00043479,120]
[420903360,1776703566987,-332.644603,0.00043479,120]
[420903361,1776703567061,-332.644603,0.00043479,120]
[420903362,1776703567135,-332.644603,0.00043479,120]
[420903363,1776703567209,-332.644594,0.00043479,120]
[420903364,1776703567282,-151.0,0.00043479,120]
[420903365,1776703567356,-151.0,0.00043479,120]
[420903366,1776703567428,-1178.477244,0.00043479,120]
[420903367,1776703567504,-1178.477244,0.00043479,120]
[420903368,1776703567581,-1178.477244,0.00043479,120]
[420903369,1776703567659,-1178.477248,0.00043479,120]
[420903370,1776703567734,-151.0,0.00043479,120]
[420903371,1776703567803,-223.895362,0.00043479,120]
[420903372,1776703567876,-151.0,0.00043479,120]
[420903373,1776703567951,-151.0,0.00043479,120]
[420903374,1776703568026,-151.0,0.00043479,120]
[420903375,1776703568100,-151.0,0.00043479,120]
[420903376,1776703568174,-151.0,0.00043479,120]
[420903377,1776703568249,-151.0,0.00043479,120]
[420903378,1776703568324,-151.0,0.00043479,120]
[420903379,1776703568397,-2507.373751,0.00043479,120]
[420903380,1776703568468,-2507.373751,0.00043479,120]
[420903381,1776703568541,-912.089124,0.00043479,120]
[420903382,1776703568616,-2507.373751,0.00043479,120]
[420903383,1776703569127,-912.089124,0.00043479,120]
[420903384,1776703569199,-2507.373743,0.00043479,120]
[420903385,1776703569271,-912.089124,0.00043479,120]
[420903386,1776703569342,-912.089134,0.00043479,120]
[420903387,1776703569412,-641.508329,0.00043479,120]
[420903388,1776703569484,-641.508329,0.00043479,120]
[420903389,1776703569558,-641.508329,0.00043479,120]
[420903390,1776703569633,-641.508335,0.00043479,120]
[420903391,1776703569707,-404.779687,0.00043479,120]
[420903392,1776703569777,-1274.252274,0.00043479,120]
[420903393,1776703569849,-1274.252274,0.00043479,120]
[420903394,1776703569920,-404.779687,0.00043479,120]
[420903395,1776703569989,-404.779687,0.00043479,120]
[420903396,1776703570060,-1274.252274,0.00043479,120]
[420903397,1776703570130,-404.779682,0.00043479,120]
[420903398,1776703570199,-1274.25227775,0.00043479,120]
[420903399,1776703570270,-315.842369,0.00043479,120]
[420903400,1776703570340,-261.883039,0.00043479,120]
[420903401,1776703570409,-315.842369,0.00043479,120]
[420903402,1776703570480,-261.883039,0.00043479,120]
[420903403,1776703570552,-315.842369,0.00043479,120]
[420903404,1776703570625,-261.883039,0.00043479,120]
[420903405,1776703570698,-315.842364,0.00043479,120]
[420903406,1776703570771,-261.883033,0.00043479,120]
[420903407,1776703570843,-151.0,0.00043479,120]
[420903408,1776703570916,-151.0,0.00043479,120]
[420903409,1776703570987,-775.518164,0.00043479,120]
[420903410,1776703571058,-775.518164,0.00043479,120]
[420903411,1776703571127,-775.518164,0.00043479,120]
[420903412,1776703571197,-775.518166,0.00043479,120]
[420903413,1776703571270,-707.241885,0.00043479,120]
[420903414,1776703571339,-707.241885,0.00043479,120]
[420903415,1776703571412,-707.241885,0.00043479,120]
[420903416,1776703571486,-707.241878,0.00043479,120]
[420903417,1776703571561,-5262.406877,0.00043479,120]
[420903418,1776703571635,-5262.406877,0.00043479,120]
[420903419,1776703571709,-151.0,0.00043479,60]
[420903420,1776703571781,-5262.406877,0.00043479,120]
[420903421,1776703571854,-151.0,0.00043479,60]
[420903422,1776703571930,-854.223138,0.00043479,120]
[420903423,1776703572005,-5262.406876,0.00043479,120]
[420903424,1776703572078,-926.364252,0.00043479,120]
[420903425,1776703572148,-151.0,0.00043479,60]
[420903426,1776703572218,-854.223138,0.00043479,120]
[420903427,1776703572288,-926.364252,0.00043479,120]
[420903428,1776703572363,-854.223138,0.00043479,120]
[420903429,1776703572438,-926.364252,0.00043479,120]
[420903430,1776703572510,-854.223132,0.00043479,120]
[420903431,1776703572583,-926.364251,0.00043479,120]
[420903432,1776703572662,-182.142103,0.00043479,120]
[420903433,1776703572732,-182.142103,0.00043479,120]
[420903434,1776703572802,-319.609226,0.00043479,120]
[420903435,1776703572873,-182.142103,0.00043479,120]
[420903436,1776703572944,-312.289735,0.00043479,120]
[420903437,1776703573017,-346.571455,0.00043479,120]
[420903438,1776703573086,-319.609226,0.00043479,120]
[420903439,1776703573154,-182.142095,0.00043479,120]
[420903440,1776703573228,-312.289735,0.00043479,120]
[420903441,1776703573305,-346.571455,0.00043479,120]
[420903442,1776703573383,-319.609226,0.00043479,120]
[420903443,1776703573460,-151.0,0.00043479,120]
[420903444,1776703573537,-312.289735,0.00043479,120]
[420903445,1776703573618,-346.571455,0.00043479,120]
[420903446,1776703573695,-319.609223,0.00043479,120]
[420903447,1776703573778,-218.922743,0.00043479,120]
[420903448,1776703573867,-151.0,0.00043479,120]
[420903449,1776703573949,-312.289736,0.00043479,120]
[420903450,1776703574033,-346.571447,0.00043479,120]
[420903451,1776703574111,-218.922743,0.00043479,120]
[420903452,1776703574185,-151.0,0.00043479,120]
[420903453,1776703574260,-218.922743,0.00043479,120]
[420903454,1776703574337,-871.293859,0.00043479,60]
[420903455,1776703574673,-191.980569,0.00043479,120]
[420903456,1776703574745,-218.922748,0.00043479,120]
[420903457,1776703574815,-500.0,0.00043479,120]
[420903458,1776703574891,-871.293859,0.00043479,60]
[420903459,1776703574963,-500.0,0.00043479,120]
[420903460,1776703575035,-151.0,0.00043479,120]
[420903461,1776703575102,-871.293859,0.00043479,60]
[420903462,1776703575169,-500.0,0.00043479,120]
[420903463,1776703575240,-871.293859,0.00043479,60]
[420903464,1776703575310,-231.549579,0.00043479,120]
[420903465,1776703575380,-500.0,0.00043479,120]
[420903466,1776703575449,-932.98241,0.00043479,120]
[420903467,1776703575525,-231.549579,0.00043479,120]
[420903468,1776703575599,-195.599696,0.00043479,120]
[420903469,1776703575674,-932.98241,0.00043479,120]
[420903470,1776703575750,-231.549579,0.00043479,120]
[420903471,1776703575820,-195.599696,0.00043479,120]
[420903472,1776703575893,-231.549576,0.00043479,120]
[420903473,1776703575965,-932.98241,0.00043479,120]
[420903474,1776703576036,-195.599696,0.00043479,120]
[420903475,1776703576107,-932.9824,0.00043479,120]
[420903476,1776703576176,-195.599691,0.00043479,120]
[420903477,1776703576247,-458.612215,0.00043479,120]
[420903478,1776703576316,-458.612215,0.00043479,120]
[420903479,1776703576389,-1174.352942,0.00043479,120]
[420903480,1776703576461,-458.612215,0.00043479,120]
[420903481,1776703576533,-1174.352942,0.00043479,120]
[420903482,1776703576606,-458.61222,0.00043479,120]
[420903483,1776703576678,-1174.352942,0.00043479,120]
[420903484,1776703576752,-1174.352945,0.00043479,120]
[420903485,1776703576825,-3067.88959,0.00043479,120]
[420903486,1776703576899,-1105.567162,0.00043479,120]
[420903487,1776703576973,-3067.88959,0.00043479,120]
[420903488,1776703577047,-151.0,0.00043479,120]
[420903489,1776703577121,-489.124159,0.00043479,120]
[420903490,1776703577194,-1105.567162,0.00043479,120]
[420903491,1776703577269,-3067.88959,0.00043479,120]
[420903492,1776703577350,-151.0,0.00043479,120]
[420903493,1776703577427,-868.969298,0.00043479,120]
[420903494,1776703577502,-489.124159,0.00043479,120]
[420903495,1776703577577,-1105.567162,0.00043479,120]
[420903496,1776703577654,-3067.88959,0.00043479,120]
[420903497,1776703577730,-868.969298,0.00043479,120]
[420903498,1776703577802,-489.124159,0.00043479,120]
[420903499,1776703577875,-1105.567161,0.00043479,120]
[420903500,1776703577954,-868.969298,0.00043479,120]
[420903501,1776703578028,-489.124155,0.00043479,120]
[420903502,1776703578104,-323.55117,0.00043479,120]
[420903503,1776703578178,-868.969298,0.00043479,120]
[420903504,1776703578266,-323.55117,0.00043479,120]
[420903505,1776703578342,-1376.966492,0.00043479,120]
[420903506,1776703578418,-323.55117,0.00043479,120]
[420903507,1776703578498,-250.980561,0.00043479,120]
[420903508,1776703578579,-1376.966492,0.00043479,120]
[420903509,1776703578657,-213.959742,0.00043479,120]
[420903510,1776703578734,-482.878775,0.00043479,120]
[420903511,1776703578808,-250.980561,0.00043479,120]
[420903512,1776703578885,-309.873847,0.00043479,120]
[420903513,1776703578962,-236.549017,0.00043479,120]
[420903514,1776703579037,-213.959742,0.00043479,120]
[420903515,1776703579109,-482.878775,0.00043479,120]
[420903516,1776703579180,-250.980561,0.00043479,120]
[420903517,1776703579251,-309.873847,0.00043479,120]
[420903518,1776703579323,-236.549017,0.00043479,120]
[420903519,1776703579394,-213.959742,0.00043479,120]
[420903520,1776703579471,-314.500678,0.00043479,120]
[420903521,1776703579547,-482.878775,0.00043479,120]
[420903522,1776703579622,-250.98056,0.00043479,120]
[420903523,1776703579697,-236.549017,0.00043479,120]
[420903524,1776703579774,-309.873847,0.00043479,120]
[420903525,1776703579847,-314.500678,0.00043479,120]
[420903526,1776703579919,-213.959738,0.00043479,120]
[420903527,1776703579991,-482.878776,0.00043479,120]
[420903528,1776703580065,-236.549012,0.00043479,120]
[420903529,1776703580136,-314.500678,0.00043479,120]
[420903530,1776703580207,-314.50067526,0.00043479,120]
[420903531,1776703580279,-323.551161,0.00043479,120]
[420903532,1776703580354,-812.19202,0.00043479,120]
[420903533,1776703580426,-2759.135439,0.00043479,120]
[420903534,1776703580500,-1376.966492,0.00043479,120]
[420903535,1776703580573,-309.873847,0.00043479,120]
[420903536,1776703580646,-812.19202,0.00043479,120]
[420903537,1776703580721,-2759.135439,0.00043479,120]
[420903538,1776703580793,-1376.966496,0.00043479,120]
[420903539,1776703580865,-812.19202,0.00043479,120]
[420903540,1776703580939,-2759.135439,0.00043479,120]
[420903541,1776703581013,-812.192026,0.00043479,120]
[420903542,1776703581082,-2759.135435,0.00043479,120]
[420903543,1776703581151,-151.0,0.00043479,120]
[420903544,1776703581220,-151.0,0.00043479,120]
[420903545,1776703581289,-315.0,0.00043479,120]
[420903546,1776703581359,-151.0,0.00043479,120]
[420903547,1776703581428,-315.0,0.00043479,120]
[420903548,1776703581498,-315.0,0.00043479,120]
[420903549,1776703581569,-315.0,0.00043479,120]
[420903550,1776703581641,-1382.380974,0.00043479,120]
[420903551,1776703581715,-1382.380974,0.00043479,120]
[420903552,1776703581786,-1382.380974,0.00043479,120]
[420903553,1776703581856,-620.825931,0.00043479,120]
[420903554,1776703581929,-1382.380967,0.00043479,120]
[420903555,1776703582001,-620.825931,0.00043479,120]
[420903556,1776703582076,-620.825931,0.00043479,120]
[420903557,1776703582152,-620.825928,0.00043479,120]
[420903558,1776703582225,-1760.236674,0.00043479,30]
[420903559,1776703582302,-1760.236674,0.00043479,30]
[420903560,1776703582737,-3140.080694,0.00043479,120]
[420903561,1776703582811,-1760.236674,0.00043479,30]
[420903562,1776703582885,-151.0,0.00043479,30]
[420903563,1776703582959,-1760.236673,0.00043479,30]
[420903564,1776703583031,-3140.080694,0.00043479,120]
[420903565,1776703583104,-157.526719,0.00043479,120]
[420903566,1776703583176,-151.0,0.00043479,30]
[420903567,1776703583248,-1787.470089,0.00043479,120]
[420903568,1776703583320,-3140.080694,0.00043479,120]
[420903569,1776703583392,-157.526719,0.00043479,120]
[420903570,1776703583467,-1787.470089,0.00043479,120]
[420903571,1776703583545,-3140.080697,0.00043479,120]
[420903572,1776703583620,-157.526719,0.00043479,120]
[420903573,1776703583696,-1787.470089,0.00043479,120]
[420903574,1776703583768,-157.526716,0.00043479,120]
[420903575,1776703583843,-1787.470086,0.00043479,120]
[420903576,1776703583917,-457.528179,0.00043479,120]
[420903577,1776703583990,-457.528179,0.00043479,120]
[420903578,1776703584060,-457.528179,0.00043479,120]
[420903579,1776703584130,-457.528176,0.00043479,120]
[420903580,1776703584201,-269.022574,0.00043479,120]
[420903581,1776703584273,-269.022574,0.00043479,120]
[420903582,1776703584348,-799.498945,0.00043479,120]
[420903583,1776703584422,-269.022574,0.00043479,120]
[420903584,1776703584496,-606.794861,0.00043479,120]
[420903585,1776703584571,-799.498945,0.00043479,120]
[420903586,1776703584645,-269.022578,0.00043479,120]
[420903587,1776703584717,-606.794861,0.00043479,120]
[420903588,1776703584789,-799.498945,0.00043479,120]
[420903589,1776703584862,-606.794861,0.00043479,120]
[420903590,1776703584935,-799.498954,0.00043479,120]
[420903591,1776703585008,-606.794866,0.00043479,120]
[420903592,1776703585080,-787.383514,0.00043479,120]
[420903593,1776703585151,-787.383514,0.00043479,120]
[420903594,1776703585222,-151.0,0.00043479,120]
[420903595,1776703585293,-787.383514,0.00043479,120]
[420903596,1776703585365,-774.144536,0.00043479,120]
[420903597,1776703585439,-787.383506,0.00043479,120]
[420903598,1776703585513,-774.144536,0.00043479,120]
[420903599,1776703585584,-323.604907,0.00043479,120]
[420903600,1776703585657,-3434.267972,0.00043479,120]
[420903601,1776703585727,-774.144536,0.00043479,120]
[420903602,1776703585796,-3434.267972,0.00043479,120]
[420903603,1776703585868,-774.144526,0.00043479,120]
[420903604,1776703585938,-3434.267972,0.00043479,120]
[420903605,1776703586009,-3434.267974,0.00043479,120]
[420903606,1776703586079,-323.604907,0.00043479,120]
[420903607,1776703586149,-188.148303,0.00043479,120]
[420903608,1776703586216,-323.604907,0.00043479,120]
[420903609,1776703586286,-323.604909,0.00043479,120]
[420903610,1776703586357,-288.000408,0.00043479,120]
[420903611,1776703586426,-288.000408,0.00043479,120]
[420903612,1776703586497,-288.000408,0.00043479,120]
[420903613,1776703586571,-288.000416,0.00043479,120]
[420903614,1776703586644,-188.217758,0.00043479,120]
[420903615,1776703586716,-188.217758,0.00043479,120]
[420903616,1776703586789,-188.217758,0.00043479,120]
[420903617,1776703586867,-344.153933,0.00043479,120]
[420903618,1776703586939,-208.001067,0.00043479,120]
[420903619,1776703587010,-188.217752,0.00043479,120]
[420903620,1776703587078,-208.001067,0.00043479,120]
[420903621,1776703587147,-344.153933,0.00043479,120]
[420903622,1776703587215,-208.001067,0.00043479,120]
[420903623,1776703587284,-208.00106,0.00043479,120]
[420903624,1776703587357,-344.153933,0.00043479,120]
[420903625,1776703587431,-344.153937,0.00043479,120]
[420903626,1776703587503,-328.485109,0.00043479,120]
[420903627,1776703587575,-328.485109,0.00043479,120]
[420903628,1776703587647,-700.654858,0.00043479,120]
[420903629,1776703587718,-328.485109,0.00043479,120]
[420903630,1776703587791,-700.654858,0.00043479,120]
[420903631,1776703587864,-328.485107,0.00043479,120]
[420903632,1776703587938,-700.654858,0.00043479,120]
[420903633,1776703588008,-2410.644142,0.00043479,120]
[420903634,1776703588078,-700.654854,0.00043479,120]
[420903635,1776703588147,-2410.644142,0.00043479,120]
[420903636,1776703588216,-2410.644142,0.00043479,120]
[420903637,1776703588287,-260.0,0.00043481,119]
[420903638,1776703588359,-260.0,0.00043483,119]
[420903639,1776703588431,-260.0,0.00043486,119]
[420903640,1776703588502,-260.0,0.00043487,120]
[420903641,1776703588573,-260.0,0.00043489,120]
[420903642,1776703588644,-9000000.0,0.0004349,30]
[420903643,1776703588715,-260.0,0.00043491,120]
[420903644,1776703588785,-260.0,0.00043492,120]
[420903645,1776703588856,-260.0,0.00043493,120]
[420903646,1776703588927,-260.0,0.00043494,120]
[420903647,1776703588996,-260.0,0.00043495,120]
[420903648,1776703589063,-260.0,0.00043496,120]
[420903649,1776703589130,-500.0,0.00043496,120]
[420903650,1776703589635,-500.0,0.00043496,120]
[420903651,1776703589708,-260.0,0.00043496,120]
[420903652,1776703589779,-260.0,0.00043497,120]
[420903653,1776703589851,-260.0,0.00043497,120]
[420903654,1776703589924,-260.0,0.00043498,120]
[420903655,1776703589998,-260.0,0.00043498,120]
[420903656,1776703590067,-260.0,0.00043499,120]
[420903657,1776703590135,-520.0,0.00043499,30]
[420903658,1776703590201,-10000.0,0.00043499,30]
[420903659,1776703590271,-1030.0,0.00043499,30]
[420903660,1776703590340,-500.0,0.00043499,30]
[420903661,1776703590408,-200.0,0.00043499,30]
[420903662,1776703590474,-200.0,0.00043499,30]
[420903663,1776703590544,-500.0,0.00043499,30]
[420903664,1776703590615,-151.0,0.00043499,30]
[420903665,1776703590686,-151.0,0.00043499,30]
[420903666,1776703590754,-6888.0,0.00043499,30]
[420903667,1776703590824,-539.24,0.00043499,60]
[420903668,1776703590895,-500.0,0.00043499,30]
[420903669,1776703590966,-200.0,0.00043499,30]
[420903670,1776703591035,-500.0,0.00043499,60]
[420903671,1776703591104,-200.0,0.00043499,60]
[420903672,1776703591171,-1068.11,0.00043499,60]
[420903673,1776703591239,-151.0,0.00043499,60]
[420903674,1776703591305,-518.5,0.00043499,60]
[420903675,1776703591374,-156.587,0.00043499,60]
[420903676,1776703591442,-4133.81408115,0.00043499,60]
[420903677,1776703591512,-559.19188,0.00043499,90]
[420903678,1776703591581,-500.0,0.00043499,60]
[420903679,1776703591652,-200.0,0.00043499,90]
[420903680,1776703591723,-200.0,0.00043499,30]
[420903681,1776703591798,-151.0,0.00043499,90]
[420903682,1776703591869,-1107.63007,0.00043499,90]
[420903683,1776703591942,-500.0,0.00043499,90]
[420903684,1776703592012,-537.6845,0.00043499,90]
[420903685,1776703592081,-7142.856,0.00043499,60]
[420903686,1776703592148,-162.380719,0.00043499,90]
[420903687,1776703592217,-579.88197956,0.00043499,120]
[420903688,1776703592286,-500.0,0.00043499,90]
[420903689,1776703592356,-200.0,0.00043499,120]
[420903690,1776703592423,-200.0,0.00043499,30]
[420903691,1776703592493,-151.0,0.00043499,120]
[420903692,1776703592565,-1148.61238259,0.00043499,120]
[420903693,1776703592641,-500.0,0.00043499,120]
[420903694,1776703592714,-168.3888056,0.00043499,120]
[420903695,1776703592786,-557.5788265,0.00043499,120]
[420903696,1776703592859,-7407.141672,0.00043499,90]
[420903697,1776703592941,-500.0,0.00043499,120]
[420903698,1776703593014,-200.0,0.00043499,30]
[420903699,1776703593087,-7681.20591386,0.00043499,120]
[420903700,1776703593158,-200.0,0.00043499,30]
[420903701,1776703593229,-200.0,0.00043499,30]
[420903702,1776703593299,-200.0,0.00043499,30]
[420903703,1776703593370,-200.0,0.00043499,30]
[420903704,1776703593442,-200.0,0.00043499,30]
[420903705,1776703593512,-200.0,0.00043499,30]
[420903706,1776703593586,-200.0,0.00043499,30]
[420903707,1776703593657,-266.54961035,0.00043499,30]
[420903708,1776703593730,-220.0,0.00043499,30]
[420903709,1776703593801,-151.0,0.00043499,30]
[420903710,1776703593876,-220.0,0.00043499,60]
[420903711,1776703593951,-151.0,0.00043499,60]
[420903712,1776703594022,-517.0,0.00043499,30]
[420903713,1776703594097,-220.0,0.00043499,90]
[420903714,1776703594169,-10000.0,0.00043499,30]
[420903715,1776703594239,-151.0,0.00043499,90]
[420903716,1776703594310,-517.0,0.00043499,30]
[420903717,1776703594381,-220.0,0.00043499,120]
[420903718,1776703594451,-10000.0,0.00043499,30]
[420903719,1776703594524,-151.0,0.00043499,120]
[420903720,1776703594602,-517.0,0.00043499,30]
[420903721,1776703594678,-382.34859367,0.00043499,90]
[420903722,1776703594991,-151.0,0.00043499,30]
[420903723,1776703595061,-620.0,0.00043499,30]
[420903724,1776703595132,-517.0,0.00043499,30]
[420903725,1776703595197,-156.587,0.00043499,60]
[420903726,1776703595264,-642.94,0.00043499,60]
[420903727,1776703595333,-517.0,0.00043499,30]
[420903728,1776703595401,-666.72878,0.00043499,90]
[420903729,1776703595469,-517.0,0.00043499,30]
[420903730,1776703595539,-691.39774486,0.00043499,120]
[420903731,1776703595612,-517.0,0.00043499,30]
[420903732,1776703595691,-151.0,0.00043499,30]
[420903733,1776703595758,-162.380719,0.00043499,90]
[420903734,1776703595827,-517.0,0.00043499,30]
[420903735,1776703595897,-151.0,0.00043499,60]
[420903736,1776703595970,-3965.66384648,0.00043499,30]
[420903737,1776703605360,150.0,8.22e-05,2]
[420903738,1776703607086,150.0,8.228e-05,2]
[420903751,1776703611310,250.0,8.228e-05,2]
[420903764,1776703628393,300.0,8.228e-05,2]
[420903765,1776703628914,1200.0,8.228e-05,2]
[420903766,1776703633064,184.08,8.2e-05,2]
[420903767,1776703652551,1692.456,8.129e-05,2]
[420903768,1776703660981,300.0,8.228e-05,2]
[420903769,1776703667401,5325.83943003,8.129e-05,2]
[420903770,1776703667423,10000.01,8.129e-05,2]
[420903771,1776703667446,3005.47636997,8.129e-05,2]
[420903772,1776703675126,1026.495,8.064e-05,2]
[420903773,1776703675190,164.612,8.064e-05,2]
[420903775,1776703724104,5803.42663003,8.178e-05,2]
[420903776,1776703724126,2476.24740197,8.178e-05,2]
[420903777,1776703751603,704.0,8.128e-05,2]
[420903778,1776703769093,200.0,8.218e-05,2]
[420903779,1776703785395,6619.76259803,8.19e-05,2]
[420903780,1776703785417,4234.86740197,8.19e-05,2]
[420903781,1776703787005,172.59,6.527e-05,2]
[420903782,1776703789739,-388448.0,0.00043994,60]
[420903783,1776703789819,-50000.0,0.00043994,60]
[420903784,1776703789896,-50000.0,0.00043994,61]
[420903785,1776703789973,-50000.0,0.00043994,62]
[420903786,1776703790050,-50000.0,0.00043994,63]
[420903787,1776703790124,-50000.0,0.00043994,64]
[420903788,1776703790200,-50000.0,0.00043994,65]
[420903789,1776703790273,-50000.0,0.00043994,66]
[420903790,1776703790347,-2957.0,0.00043994,60]
[420903791,1776703790424,-50000.0,0.00043994,67]
[420903792,1776703790502,-50000.0,0.00043994,68]
[420903793,1776703790583,-50000.0,0.00043994,69]
[420903794,1776703790664,-50000.0,0.00043994,70]
[420903795,1776703790740,-5349.0,0.00043994,60]
[420903796,1776703790819,-50000.0,0.00043994,71]
[420903797,1776703790901,-50000.0,0.00043994,72]
[420903798,1776703790979,-283.97829231,0.00043994,60]
[420903799,1776703791062,-50000.0,0.00043994,73]
[420903800,1776703791141,-50000.0,0.00043994,74]
[420903801,1776703791220,-50000.0,0.00043994,75]
[420903802,1776703791298,-5499.80294191,0.00043994,60]